bitfinex/quotes_BTCUSD_20251031
["timestamp","ask_amount","ask_price","bid_price","bid_amount"]
[1761918148094,0.14369853,109900.0,109890.0,0.11722373]
[1761918149119,0.14369853,109900.0,109890.0,0.10139373]
[1761918149473,0.12838853,109900.0,109890.0,0.11722373]
[1761918149684,0.14369853,109900.0,109890.0,0.10139373]
[1761918150085,0.14369853,109900.0,109890.0,0.08996373]
[1761918150292,3.03918744,109900.0,109890.0,0.00014472]
[1761918150501,2.57587034,109900.0,109890.0,0.00014472]
[1761918150742,2.59014318,109900.0,109890.0,0.00014472]
[1761918150953,0.12741172,109880.0,109870.0,0.00149132]
[1761918151157,2.51229265,109880.0,109870.0,0.00149132]
[1761918151379,2.5548194,109880.0,109870.0,0.00149132]
[1761918152217,2.56365398,109880.0,109870.0,0.00149132]
[1761918152849,2.65347299,109880.0,109870.0,0.00149132]
[1761918153214,2.56365398,109880.0,109870.0,0.00149132]
[1761918154460,2.57793521,109880.0,109870.0,0.00149132]
[1761918155043,2.57893521,109880.0,109870.0,0.00149132]
[1761918155639,2.58093521,109880.0,109870.0,0.00149132]
[1761918156008,2.56665398,109880.0,109870.0,0.00149132]
[1761918156209,2.65647299,109880.0,109870.0,0.00149132]
[1761918158885,2.67075408,109880.0,109870.0,0.00149132]
[1761918159356,2.76057309,109880.0,109870.0,1e-08]
[1761918160906,2.77485122,109880.0,109870.0,1e-08]
[1761918162811,2.8110335,109880.0,109870.0,1e-08]
[1761918163033,0.12745812,109840.0,109830.0,0.0004]
[1761918163233,0.15155812,109840.0,109830.0,0.0004]
[1761918163511,2.67444812,109840.0,109830.0,0.0004]
[1761918163755,2.51444812,109840.0,109830.0,0.0004]
[1761918164234,2.51459279,109840.0,109830.0,0.0014]
[1761918164459,2.51459279,109840.0,109830.0,0.0004]
[1761918164920,2.51459279,109840.0,109830.0,0.0014]
[1761918165146,2.67232285,109840.0,109830.0,0.0014]
[1761918165380,2.7088484,109840.0,109830.0,0.0074]
[1761918165827,2.7088484,109840.0,109830.0,0.0014]
[1761918166051,2.67232285,109840.0,109830.0,0.0044]
[1761918166298,2.68929518,109840.0,109830.0,0.0044]
[1761918166574,2.79965767,109840.0,109830.0,0.0044]
[1761918166808,2.46748133,109820.0,109810.0,0.0004]
[1761918167023,2.50583351,109820.0,109810.0,0.0004]
[1761918167246,2.52891351,109820.0,109810.0,0.0004]
[1761918167494,2.48372294,109810.0,109800.0,0.0244429]
[1761918167669,2.51807294,109810.0,109800.0,0.0244429]
[1761918168142,2.49499294,109810.0,109800.0,0.0244429]
[1761918168349,2.49499294,109810.0,109800.0,0.0402429]
[1761918168557,0.46749294,109810.0,109800.0,0.14798581]
[1761918168766,0.01127,109820.0,109800.0,0.28149036]
[1761918168978,0.12748196,109820.0,109810.0,0.02723]
[1761918169191,0.12748196,109820.0,109810.0,0.02856128]
[1761918169423,0.50679196,109820.0,109810.0,0.00133128]
[1761918170700,0.50679196,109820.0,109810.0,0.00233128]
[1761918171402,0.48371196,109820.0,109810.0,0.01376128]
[1761918171691,0.50679196,109820.0,109810.0,0.00233128]
[1761918171906,0.48371196,109820.0,109810.0,0.00333128]
[1761918172134,0.48371196,109820.0,109810.0,0.01476128]
[1761918172351,0.50679196,109820.0,109810.0,0.01476128]
[1761918172577,0.50679196,109820.0,109810.0,0.00333128]
[1761918173025,2.55024305,109820.0,109810.0,0.00333128]
[1761918175217,2.50679196,109820.0,109810.0,0.00333128]
[1761918176089,2.52374303,109820.0,109810.0,0.00333128]
[1761918176302,2.50679196,109820.0,109810.0,0.00333128]
[1761918176720,2.52374488,109820.0,109810.0,0.00233128]
[1761918177141,2.52374488,109820.0,109810.0,0.00133128]
[1761918177360,2.61356389,109820.0,109810.0,0.00133128]
[1761918179254,2.63311897,109820.0,109810.0,0.00133128]
[1761918179464,2.64740264,109820.0,109810.0,0.00133128]
[1761918180684,2.64940264,109820.0,109810.0,0.00133128]
[1761918181560,2.73922165,109820.0,109810.0,1e-08]
[1761918181819,2.72226873,109820.0,109810.0,1e-08]
[1761918182265,2.739257,109820.0,109810.0,1e-08]
[1761918182485,2.72226873,109820.0,109810.0,1e-08]
[1761918182889,2.73655681,109820.0,109810.0,1e-08]
[1761918183316,2.7535481,109820.0,109810.0,1e-08]
[1761918183749,2.99499294,109810.0,109800.0,1e-08]
[1761918183964,2.74407167,109810.0,109800.0,1e-08]
[1761918184184,2.74407167,109810.0,109760.0,0.0004]
[1761918184185,2.4675394,109770.0,109760.0,0.0004]
[1761918184432,2.51203069,109770.0,109760.0,0.0004]
[1761918184668,2.64447971,109770.0,109760.0,0.0004]
[1761918185319,2.65324267,109770.0,109760.0,0.0004]
[1761918185752,2.54387365,109770.0,109760.0,0.0014]
[1761918185984,2.54387365,109770.0,109760.0,0.0004]
[1761918187322,2.61117211,109770.0,109760.0,0.0004]
[1761918187577,2.40919687,109770.0,109760.0,0.0004]
[1761918187795,2.46943781,109770.0,109760.0,0.0004]
[1761918188208,2.55925682,109770.0,109760.0,0.0004]
[1761918188451,2.46943781,109770.0,109760.0,0.0004]
[1761918188671,2.45248717,109770.0,109760.0,0.0004]
[1761918189314,2.46944539,109770.0,109760.0,0.0004]
[1761918190160,2.5787991,109770.0,109760.0,0.0004]
[1761918191386,2.64554414,109770.0,109760.0,0.0004]
[1761918191573,2.73536315,109770.0,109760.0,0.0004]
[1761918193094,2.65983846,109770.0,109760.0,0.0004]
[1761918193309,2.57001945,109770.0,109760.0,0.0004]
[1761918193737,2.55048475,109770.0,109760.0,0.0004]
[1761918193951,2.51923221,109770.0,109760.0,0.0004]
[1761918194160,2.53617672,109770.0,109760.0,0.0004]
[1761918194367,2.47993144,109770.0,109760.0,0.0004]
[1761918194571,0.16286258,109770.0,109760.0,0.01654]
[1761918194782,0.02669185,109770.0,109760.0,0.14409102]
[1761918195021,0.02669185,109770.0,109760.0,0.0004]
[1761918195022,0.17936103,109770.0,109760.0,0.0004]
[1761918195223,0.17936103,109770.0,109760.0,0.00151022]
[1761918195224,2.18815878,109770.0,109760.0,0.00151022]
[1761918195635,2.17936103,109770.0,109760.0,0.00151022]
[1761918197421,0.17936103,109770.0,109760.0,0.00151022]
[1761918197622,0.15638103,109770.0,109760.0,0.00151022]
[1761918198391,0.18040103,109770.0,109760.0,0.00151022]
[1761918199711,0.18893068,109770.0,109760.0,0.00151022]
[1761918201866,0.00966128,109770.0,109760.0,0.23490025]
[1761918202078,0.00113163,109770.0,109760.0,0.86959943]
[1761918202311,0.00113163,109770.0,109760.0,1.35618562]
[1761918202530,0.00113163,109770.0,109760.0,1.69618562]
[1761918202694,0.00013163,109770.0,109760.0,1.69618562]
[1761918203460,0.00013163,109770.0,109760.0,0.72501324]
[1761918203714,0.00013163,109770.0,109760.0,1.20959943]
[1761918203920,0.00013163,109770.0,109760.0,1.22159943]
[1761918204234,0.00013163,109770.0,109760.0,1.70818562]
[1761918204927,0.00013163,109770.0,109760.0,1.73556201]
[1761918205161,0.00013163,109770.0,109760.0,1.72356201]
[1761918205518,1e-08,109770.0,109760.0,1.76156199]
[1761918206172,1e-08,109770.0,109760.0,1.751562]
[1761918206381,1e-08,109770.0,109760.0,1.76156199]
[1761918207932,1e-08,109770.0,109760.0,1.91086199]
[1761918208139,1e-08,109770.0,109760.0,1.4242758]
[1761918208344,1e-08,109770.0,109760.0,1.91086199]
[1761918208787,1e-08,109770.0,109760.0,1.900862]
[1761918208994,1e-08,109770.0,109760.0,1.91086199]
[1761918210605,1e-08,109770.0,109760.0,1.900862]
[1761918210803,1e-08,109770.0,109760.0,1.91086199]
[1761918211204,1e-08,109770.0,109760.0,1.76156199]
[1761918212033,1e-08,109770.0,109760.0,1.751562]
[1761918212269,1e-08,109770.0,109760.0,1.76156199]
[1761918212913,1e-08,109770.0,109760.0,1.751562]
[1761918213436,1e-08,109770.0,109760.0,0.77838962]
[1761918213708,1e-08,109770.0,109760.0,1.751562]
[1761918214445,1e-08,109770.0,109760.0,0.36483096]
[1761918214917,1e-08,109770.0,109760.0,0.27643025]
[1761918215147,0.12753941,109770.0,109760.0,0.27643025]
[1761918215599,0.15484941,109770.0,109760.0,0.11072923]
[1761918215808,0.15484941,109770.0,109760.0,0.11872923]
[1761918216017,0.15484941,109770.0,109760.0,0.12272923]
[1761918216469,0.15484941,109770.0,109760.0,0.10732923]
[1761918216654,0.15484941,109770.0,109760.0,0.09532923]
[1761918217136,0.17888941,109770.0,109760.0,0.10432923]
[1761918217346,0.17888941,109770.0,109760.0,0.01451022]
[1761918217347,0.20953115,109770.0,109760.0,0.01451022]
[1761918217800,0.20953115,109770.0,109760.0,0.01051022]
[1761918218011,0.54953115,109770.0,109760.0,0.01051022]
[1761918218215,0.54953115,109770.0,109760.0,0.00451022]
[1761918218416,0.54953115,109770.0,109760.0,0.00851022]
[1761918218695,0.54953115,109770.0,109760.0,0.01051022]
[1761918218922,0.54953115,109770.0,109760.0,0.00351022]
[1761918219134,0.51888941,109770.0,109760.0,0.00151022]
[1761918219336,0.49484941,109770.0,109760.0,0.00851022]
[1761918219551,0.49484941,109770.0,109760.0,0.02391022]
[1761918219552,0.47890941,109770.0,109760.0,0.02391022]
[1761918219705,0.49484941,109770.0,109760.0,0.02391022]
[1761918219913,0.51888941,109770.0,109760.0,0.00851022]
[1761918221459,1e-08,109770.0,109760.0,0.77096801]
[1761918221680,1e-08,109770.0,109760.0,0.84256545]
[1761918222453,1e-08,109770.0,109760.0,0.83756545]
[1761918222667,1e-08,109770.0,109760.0,0.84456545]
[1761918223047,1e-08,109770.0,109760.0,0.84756545]
[1761918224941,1e-08,109770.0,109760.0,0.11872923]
[1761918225180,0.14305941,109770.0,109760.0,0.11872923]
[1761918225398,0.12753941,109770.0,109760.0,0.11872923]
[1761918225823,0.14305941,109770.0,109760.0,0.10332923]
[1761918226037,0.14305941,109770.0,109760.0,0.11898923]
[1761918226247,0.12753941,109770.0,109760.0,0.11898923]
[1761918226481,0.12753941,109770.0,109760.0,0.24654025]
[1761918226701,1e-08,109770.0,109760.0,0.27067025]
[1761918226915,0.12753941,109770.0,109760.0,0.27067025]
[1761918227128,0.14305941,109770.0,109760.0,0.11898923]
[1761918227769,1e-08,109770.0,109760.0,0.27067025]
[1761918227993,1e-08,109770.0,109760.0,0.79343872]
[1761918228225,1e-08,109770.0,109760.0,0.75725644]
[1761918228450,1e-08,109770.0,109760.0,0.79343872]
[1761918229448,1e-08,109770.0,109760.0,1.62002491]
[1761918229652,1e-08,109770.0,109760.0,1.70984392]
[1761918229894,1e-08,109770.0,109760.0,0.73667154]
[1761918230094,1e-08,109770.0,109760.0,1.22325773]
[1761918230442,1e-08,109770.0,109760.0,1.21425773]
[1761918230650,1e-08,109770.0,109760.0,1.22125773]
[1761918231443,1e-08,109770.0,109760.0,1.21825773]
[1761918231867,1e-08,109770.0,109760.0,1.22225773]
[1761918232055,1e-08,109770.0,109760.0,1.21825773]
[1761918232286,1e-08,109770.0,109760.0,0.39167154]
[1761918232470,1e-08,109770.0,109760.0,0.79143872]
[1761918234796,0.12752903,109780.0,109770.0,0.1381794]
[1761918235056,0.08320903,109790.0,109770.0,0.24414083]
[1761918235234,0.08320903,109790.0,109780.0,0.21734679]
[1761918235398,0.08320903,109790.0,109780.0,0.08981901]
[1761918235602,0.09872903,109790.0,109780.0,0.08981901]
[1761918236138,0.09872903,109790.0,109780.0,0.10547901]
[1761918236544,0.09872903,109790.0,109780.0,0.08981901]
[1761918236765,0.09872903,109790.0,109780.0,0.10647901]
[1761918236967,0.09872903,109790.0,109780.0,0.23400679]
[1761918237146,0.07152903,109790.0,109780.0,0.10647901]
[1761918237751,0.07152903,109790.0,109780.0,0.23400679]
[1761918237975,0.07152903,109790.0,109780.0,0.10647901]
[1761918238150,0.08704903,109790.0,109780.0,0.10847901]
[1761918238386,0.07152903,109790.0,109780.0,0.10847901]
[1761918240123,0.08704903,109790.0,109780.0,0.10847901]
[1761918240577,0.08704903,109790.0,109780.0,0.09281901]
[1761918240905,0.08704903,109790.0,109780.0,0.09348502]
[1761918240906,0.11143903,109790.0,109780.0,0.09348502]
[1761918241313,0.07152903,109790.0,109780.0,0.2608028]
[1761918241524,0.07152903,109790.0,109780.0,0.13327502]
[1761918241790,0.07152903,109790.0,109780.0,0.10914502]
[1761918242020,0.11143903,109790.0,109780.0,0.09348502]
[1761918243958,0.13741223,109790.0,109780.0,0.09348502]
[1761918244205,0.11143903,109790.0,109780.0,0.09348502]
[1761918245074,2.45143903,109790.0,109780.0,0.00366601]
[1761918245271,2.48810393,109790.0,109780.0,0.00366601]
[1761918245859,2.50239149,109790.0,109780.0,0.00366601]
[1761918246066,2.50239149,109790.0,109780.0,0.00266601]
[1761918246274,2.68202951,109790.0,109780.0,0.00066601]
[1761918246477,2.68202951,109790.0,109780.0,1e-08]
[1761918246478,2.74322579,109790.0,109780.0,1e-08]
[1761918246856,2.71392422,109790.0,109780.0,1e-08]
[1761918247059,2.71392422,109790.0,109760.0,0.0004]
[1761918247060,2.9675394,109770.0,109760.0,0.0004]
[1761918247244,2.73493232,109770.0,109760.0,0.0004]
[1761918247904,2.76232724,109770.0,109760.0,0.0004]
[1761918248295,2.83123813,109770.0,109760.0,0.0004]
[1761918248900,2.74141912,109770.0,109760.0,0.0004]
[1761918249338,2.74141912,109770.0,109760.0,0.0014]
[1761918249544,2.74441912,109770.0,109760.0,0.0004]
[1761918249736,2.75871095,109770.0,109760.0,0.0004]
[1761918249938,2.75971095,109770.0,109760.0,1e-08]
[1761918250150,2.88571224,109770.0,109760.0,1e-08]
[1761918250338,2.88571224,109770.0,109710.0,0.01148]
[1761918250339,0.12760406,109720.0,109710.0,0.01148]
[1761918250520,0.12760406,109720.0,109710.0,0.10178084]
[1761918250741,0.17919406,109720.0,109710.0,0.00900201]
[1761918251141,0.55179222,109720.0,109710.0,0.00900201]
[1761918251361,0.51919406,109720.0,109710.0,0.00900201]
[1761918252257,0.51919406,109720.0,109710.0,0.00048183]
[1761918252458,0.51919406,109720.0,109710.0,0.00898754]
[1761918252670,0.5281708,109720.0,109710.0,0.01798754]
[1761918252848,0.5281708,109720.0,109710.0,0.02098754]
[1761918253051,0.5281708,109720.0,109710.0,0.01054276]
[1761918253318,0.5281708,109720.0,109710.0,0.00203705]
[1761918253521,0.5281708,109720.0,109710.0,0.04367661]
[1761918253522,0.5037808,109720.0,109710.0,0.04367661]
[1761918253728,0.4882608,109720.0,109710.0,0.04367661]
[1761918254131,0.4765808,109720.0,109710.0,0.04367661]
[1761918254370,0.14678753,109730.0,109710.0,0.27537521]
[1761918254587,0.12759752,109720.0,109710.0,0.14621084]
[1761918255010,0.14678753,109730.0,109710.0,0.27381999]
[1761918255212,0.12759752,109720.0,109710.0,0.25815999]
[1761918255356,0.12759752,109720.0,109710.0,0.29677794]
[1761918255555,0.12759752,109720.0,109710.0,0.31196794]
[1761918255762,0.15499913,109740.0,109720.0,0.12759752]
[1761918255945,0.14417589,109730.0,109720.0,0.10600901]
[1761918256566,0.16913589,109730.0,109710.0,0.14257077]
[1761918256779,0.15320032,109730.0,109710.0,0.25515978]
[1761918256990,0.15320032,109730.0,109720.0,0.01619]
[1761918257395,0.15320032,109730.0,109720.0,0.02319]
[1761918257961,0.15320032,109730.0,109720.0,0.007]
[1761918258874,0.20506146,109730.0,109720.0,0.007]
[1761918259532,2.51607032,109730.0,109720.0,0.007]
[1761918259741,2.51607032,109730.0,109720.0,0.009]
[1761918259950,2.51607032,109730.0,109720.0,0.00333292]
[1761918260158,2.51607032,109730.0,109720.0,0.00133292]
[1761918260371,2.51607032,109730.0,109720.0,0.00233292]
[1761918260585,2.51607032,109730.0,109720.0,0.00333292]
[1761918261279,2.51607032,109730.0,109720.0,0.00233292]
[1761918261492,2.60588933,109730.0,109720.0,0.00233292]
[1761918261704,2.69570834,109730.0,109720.0,0.00233292]
[1761918261910,2.69570834,109730.0,109720.0,0.00133292]
[1761918262131,2.69570834,109730.0,109720.0,0.00233292]
[1761918262364,2.51972433,109730.0,109720.0,0.00233292]
[1761918262786,2.51972433,109730.0,109720.0,0.00333292]
[1761918264244,0.15320032,109730.0,109720.0,0.01929292]
[1761918264509,0.00902443,109730.0,109720.0,0.14689044]
[1761918264754,0.17605032,109730.0,109720.0,0.00333292]
[1761918264989,0.12758589,109730.0,109720.0,0.14689044]
[1761918265192,0.15100707,109740.0,109720.0,0.28952158]
[1761918265417,0.15100707,109740.0,109730.0,0.0217]
[1761918265641,0.15100707,109740.0,109730.0,0.14928589]
[1761918265866,0.1367111,109740.0,109730.0,0.14928589]
[1761918266129,0.1532811,109740.0,109730.0,0.0217]
[1761918266329,0.1761511,109740.0,109730.0,0.00574]
[1761918266540,0.12758589,109730.0,109720.0,0.09681901]
[1761918266743,0.14415589,109730.0,109720.0,0.10577901]
[1761918266948,0.14415589,109730.0,109720.0,0.23337653]
[1761918267191,0.14415589,109730.0,109720.0,0.10577901]
[1761918267406,0.14566343,109740.0,109730.0,0.12758589]
[1761918267612,0.14566343,109740.0,109730.0,0.0217]
[1761918267820,0.14563903,109740.0,109730.0,0.0217]
[1761918268027,0.14563903,109740.0,109730.0,0.0247]
[1761918268223,2.0,109740.0,109730.0,0.17702589]
[1761918268642,0.47671752,109750.0,109730.0,0.17702589]
[1761918268882,2.0,109740.0,109730.0,0.20324478]
[1761918269084,0.21292471,109760.0,109740.0,0.12757167]
[1761918269284,0.21292471,109760.0,109750.0,0.02722]
[1761918269504,0.21292471,109760.0,109750.0,0.15478264]
[1761918269700,0.1366618,109760.0,109750.0,0.15478264]
[1761918270158,0.1366618,109760.0,109750.0,0.02722]
[1761918270364,2.12755102,109760.0,109750.0,0.18147034]
[1761918270571,0.14412102,109760.0,109750.0,0.11817064]
[1761918270798,0.12755102,109760.0,109750.0,0.11817064]
[1761918271001,0.14412102,109760.0,109750.0,0.11883692]
[1761918271873,0.01657,109760.0,109750.0,0.24639956]
[1761918272122,0.00866939,109770.0,109760.0,0.12755102]
[1761918272329,0.15096829,109780.0,109760.0,0.25807003]
[1761918272541,0.15096829,109780.0,109770.0,0.01081]
[1761918272749,0.15324827,109780.0,109770.0,0.02677]
[1761918273015,0.15324827,109780.0,109770.0,0.02699205]
[1761918273231,0.15324827,109780.0,109770.0,0.01103205]
[1761918273677,0.16208562,109780.0,109770.0,0.00022205]
[1761918273900,0.18495562,109780.0,109770.0,0.00022205]
[1761918274322,0.18495562,109780.0,109770.0,0.00122205]
[1761918274740,0.14917228,109790.0,109770.0,0.18127145]
[1761918274946,0.12752778,109780.0,109770.0,0.18127145]
[1761918275172,0.12752778,109780.0,109770.0,0.03777205]
[1761918275381,0.15769754,109790.0,109770.0,0.22113547]
[1761918275597,0.47670228,109790.0,109780.0,0.01596]
[1761918275818,0.47670228,109790.0,109780.0,0.0407]
[1761918276696,0.13670228,109790.0,109780.0,0.13051901]
[1761918276911,0.12759399,109790.0,109780.0,0.13051901]
[1761918277124,0.12759399,109790.0,109780.0,0.25804679]
[1761918277339,0.4996986,109800.0,109780.0,0.28505584]
[1761918277340,0.12750796,109800.0,109780.0,0.28505584]
[1761918277572,0.12751616,109790.0,109780.0,0.26909584]
[1761918277787,0.12750796,109800.0,109790.0,0.0217]
[1761918278004,0.13627029,109800.0,109790.0,0.14921616]
[1761918278217,0.13627029,109800.0,109790.0,0.0217]
[1761918278453,0.13627029,109800.0,109790.0,0.0207]
[1761918278892,0.14407796,109800.0,109790.0,0.0207]
[1761918279314,0.14866835,109810.0,109790.0,0.11151901]
[1761918279530,2.12750455,109800.0,109790.0,0.0217]
[1761918279803,0.12750455,109800.0,109790.0,0.0217]
[1761918280009,0.12750455,109800.0,109790.0,0.0227]
[1761918280228,0.14407455,109800.0,109790.0,0.0227]
[1761918280437,0.14407455,109800.0,109790.0,0.0217]
[1761918280860,0.14407455,109800.0,109790.0,0.09555901]
[1761918281072,0.14407455,109800.0,109790.0,0.11151901]
[1761918281286,0.14407455,109800.0,109790.0,0.09455901]
[1761918281500,0.12752778,109780.0,109770.0,0.13857124]
[1761918281726,0.12752778,109780.0,109770.0,0.11681106]
[1761918281950,0.14409778,109780.0,109770.0,0.11681106]
[1761918283274,0.14409778,109780.0,109770.0,0.12281106]
[1761918283712,0.14409778,109780.0,109770.0,0.12381106]
[1761918284381,0.14409778,109780.0,109770.0,0.11781106]
[1761918284825,0.14409778,109780.0,109770.0,0.00522205]
[1761918284826,0.16673778,109780.0,109770.0,0.00522205]
[1761918285469,0.14409778,109780.0,109770.0,0.03178205]
[1761918285688,0.14409778,109780.0,109770.0,0.02778205]
[1761918285912,0.12752778,109780.0,109770.0,0.2676693]
[1761918286375,0.12752778,109780.0,109770.0,0.14113106]
[1761918286610,0.12752778,109780.0,109770.0,0.11860106]
[1761918286830,0.14371778,109780.0,109770.0,0.11860106]
[1761918287595,0.14371778,109780.0,109770.0,0.10285106]
[1761918287808,0.14371778,109780.0,109770.0,0.11860106]
[1761918288260,0.16635778,109780.0,109770.0,0.09204106]
[1761918288866,0.16635778,109780.0,109770.0,0.00222205]
[1761918289075,2.19694508,109780.0,109770.0,0.00222205]
[1761918291008,0.14371778,109780.0,109770.0,0.01797205]
[1761918291212,0.12752778,109780.0,109770.0,0.01797205]
[1761918291611,0.14371778,109780.0,109770.0,0.01797205]
[1761918292020,0.14371778,109780.0,109770.0,0.14551145]
[1761918292435,0.15997083,109800.0,109770.0,0.25786046]
[1761918292674,2.0,109780.0,109770.0,0.29731266]
[1761918292863,0.13939616,109790.0,109770.0,0.29731266]
[1761918292990,0.14371778,109780.0,109770.0,0.10779106]
[1761918293396,0.14371778,109780.0,109770.0,0.09204106]
[1761918293596,0.14371778,109780.0,109770.0,0.09104106]
[1761918294761,0.14371778,109780.0,109770.0,0.09204106]
[1761918295008,0.14371778,109780.0,109770.0,0.10779106]
[1761918295225,0.14371778,109780.0,109770.0,0.23533046]
[1761918295656,0.13939616,109790.0,109780.0,0.12752778]
[1761918295844,0.16203616,109790.0,109770.0,0.23533046]
[1761918296335,0.53386787,109800.0,109780.0,0.14327778]
[1761918296589,2.0,109790.0,109780.0,0.25809504]
[1761918296817,0.00906578,109800.0,109790.0,0.17053616]
[1761918297251,0.14881332,109810.0,109790.0,0.17053616]
[1761918297468,0.001,109800.0,109790.0,0.17053616]
[1761918297695,0.001,109800.0,109790.0,0.24460517]
[1761918298144,0.001,109800.0,109790.0,0.26035517]
[1761918298771,0.48554999,109810.0,109800.0,0.12750455]
[1761918299248,0.34887164,109810.0,109800.0,0.14325455]
[1761918299684,0.13636458,109810.0,109800.0,0.14325455]
[1761918300149,0.13636458,109810.0,109800.0,0.10556901]
[1761918300374,0.15255458,109810.0,109800.0,0.23307356]
[1761918300602,0.13636458,109810.0,109800.0,0.23307356]
[1761918300824,0.15255458,109810.0,109800.0,0.23307356]
[1761918301063,0.21886837,109810.0,109800.0,0.10656901]
[1761918301303,0.00014497,109810.0,109800.0,0.25660356]
[1761918302481,0.00014497,109810.0,109800.0,1.0456069]
[1761918302747,0.00014497,109810.0,109800.0,1.3856069]
[1761918303010,0.00014497,109810.0,109800.0,1.3846069]
[1761918303284,1e-08,109810.0,109800.0,1.47542591]
[1761918303557,1e-08,109810.0,109800.0,1.71722723]
[1761918303785,1e-08,109810.0,109800.0,1.74258966]
[1761918304020,1e-08,109830.0,109820.0,1.03603479]
[1761918304249,1e-08,109830.0,109820.0,1.17222174]
[1761918304472,1e-08,109830.0,109820.0,1.19475174]
[1761918304910,1e-08,109830.0,109820.0,1.68056294]
[1761918305124,1e-08,109830.0,109820.0,1.19475174]
[1761918305871,8.798e-05,109830.0,109820.0,1.19475174]
[1761918306090,8.798e-05,109830.0,109820.0,1.19875174]
[1761918306520,8.798e-05,109830.0,109820.0,1.20775174]
[1761918306947,8.798e-05,109830.0,109820.0,0.70894054]
[1761918307162,8.798e-05,109830.0,109820.0,1.19475174]
[1761918307377,8.798e-05,109830.0,109820.0,1.21475174]
[1761918310531,8.798e-05,109830.0,109820.0,1.19475176]
[1761918310747,8.798e-05,109830.0,109820.0,0.81856948]
[1761918311197,8.798e-05,109830.0,109820.0,0.80356948]
[1761918311633,8.798e-05,109830.0,109820.0,0.83975176]
[1761918311825,8.798e-05,109830.0,109820.0,1.17975176]
[1761918312520,8.798e-05,109830.0,109820.0,1.19275176]
[1761918312738,8.798e-05,109830.0,109820.0,1.18775176]
[1761918312955,8.798e-05,109830.0,109820.0,1.19075176]
[1761918313177,8.798e-05,109830.0,109820.0,1.17775176]
[1761918313398,8.798e-05,109830.0,109820.0,1.18775176]
[1761918313612,8.798e-05,109830.0,109820.0,0.70194056]
[1761918313828,8.798e-05,109830.0,109820.0,1.18775176]
[1761918314045,8.798e-05,109830.0,109820.0,0.70194056]
[1761918314925,8.798e-05,109830.0,109820.0,0.32575828]
[1761918315147,8.798e-05,109830.0,109820.0,0.81156948]
[1761918315370,8.798e-05,109830.0,109820.0,0.84775176]
[1761918315830,8.798e-05,109830.0,109820.0,0.34894056]
[1761918316053,8.798e-05,109830.0,109820.0,0.84275176]
[1761918316270,8.798e-05,109830.0,109820.0,0.84475176]
[1761918316501,8.798e-05,109830.0,109820.0,1.18475176]
[1761918316726,8.798e-05,109830.0,109820.0,1.30089174]
[1761918316962,8.798e-05,109830.0,109820.0,1.20475174]
[1761918317627,8.798e-05,109830.0,109820.0,1.19675174]
[1761918318748,8.798e-05,109830.0,109820.0,1.15856946]
[1761918318972,8.798e-05,109830.0,109820.0,1.20775174]
[1761918320781,8.798e-05,109830.0,109820.0,1.20975174]
[1761918321225,8.798e-05,109830.0,109820.0,1.20775174]
[1761918321454,8.798e-05,109830.0,109820.0,1.21175174]
[1761918321926,2.34,109890.0,109870.0,0.12742331]
[1761918322170,2.00048339,109890.0,109880.0,0.26887073]
[1761918322397,0.00048339,109890.0,109880.0,0.26887073]
[1761918323291,0.12788351,109890.0,109880.0,0.26887073]
[1761918323509,0.00048339,109890.0,109880.0,0.26887073]
[1761918323723,0.13742351,109890.0,109880.0,0.11811901]
[1761918323954,0.13742351,109890.0,109880.0,0.24953073]
[1761918324181,2.0,109890.0,109880.0,0.27287073]
[1761918324398,0.01664,109890.0,109880.0,0.25053073]
[1761918324692,2.0,109890.0,109880.0,0.27387073]
[1761918325122,0.14404012,109890.0,109880.0,0.12311901]
[1761918325337,0.12740012,109890.0,109880.0,0.25053073]
[1761918325785,2.0,109890.0,109880.0,0.27387073]
[1761918326210,0.1363862,109900.0,109890.0,0.12740012]
[1761918326211,0.0089958,109900.0,109890.0,0.12740012]
[1761918326428,0.00908378,109900.0,109890.0,0.26885913]
[1761918326640,0.12747651,109900.0,109890.0,0.14145901]
[1761918326862,0.15296801,109900.0,109890.0,0.10189901]
[1761918327314,0.15296801,109900.0,109890.0,0.11811901]
[1761918327521,0.13632801,109900.0,109890.0,0.24551913]
[1761918327737,0.15296801,109900.0,109890.0,0.11811901]
[1761918327950,0.15452006,109900.0,109890.0,0.11811901]
[1761918328178,0.13788006,109900.0,109890.0,0.24551913]
[1761918328419,0.16301383,109900.0,109890.0,0.11811901]
[1761918329098,0.16301383,109900.0,109890.0,0.11911901]
[1761918329320,0.14637383,109900.0,109890.0,0.11911901]
[1761918329535,0.16301383,109900.0,109890.0,0.11911901]
[1761918329758,0.21970934,109900.0,109890.0,0.001]
[1761918330180,2.55970934,109900.0,109890.0,0.001]
[1761918330451,2.57671588,109900.0,109890.0,0.001]
[1761918330891,2.52002037,109900.0,109890.0,0.001]
[1761918331626,2.50338037,109900.0,109890.0,0.0293]
[1761918331845,2.54325037,109900.0,109890.0,0.001]
[1761918332061,0.12740993,109890.0,109870.0,0.17194386]
[1761918332333,0.1359037,109890.0,109870.0,0.26176287]
[1761918332544,0.12741172,109880.0,109870.0,0.26176287]
[1761918332925,0.12741172,109880.0,109870.0,0.27798287]
[1761918333163,0.12740993,109890.0,109870.0,0.27898287]
[1761918333384,0.00852312,109890.0,109880.0,0.23345073]
[1761918333607,0.00852312,109890.0,109880.0,0.25679073]
[1761918334543,0.13592324,109890.0,109880.0,0.25679073]
[1761918334746,0.00852312,109890.0,109880.0,0.25679073]
[1761918335604,0.00852312,109890.0,109880.0,0.25779073]
[1761918335814,0.13592324,109890.0,109880.0,0.13037901]
[1761918336253,0.13592324,109890.0,109880.0,0.25779073]
[1761918336676,0.13592324,109890.0,109880.0,0.23445073]
[1761918337103,0.13592324,109890.0,109880.0,0.13037901]
[1761918337519,0.15256324,109890.0,109880.0,0.10703901]
[1761918337728,0.15256324,109890.0,109880.0,0.09081901]
[1761918337942,2.15256324,109890.0,109880.0,0.001]
[1761918338154,2.15389369,109890.0,109880.0,0.001]
[1761918338374,2.15389369,109890.0,109880.0,0.14463172]
[1761918338580,0.13725369,109890.0,109880.0,0.16797172]
[1761918338794,0.13725369,109890.0,109880.0,0.14463172]
[1761918339009,0.13725369,109890.0,109880.0,0.001]
[1761918339010,3.0341678,109890.0,109880.0,0.001]
[1761918339211,2.55380306,109890.0,109880.0,0.001]
[1761918339425,2.53057306,109890.0,109880.0,0.001]
[1761918339900,2.53057306,109890.0,109880.0,0.01722]
[1761918340130,2.53057306,109890.0,109880.0,0.001]
[1761918340338,0.12741172,109880.0,109870.0,0.01208]
[1761918340555,0.12741172,109880.0,109870.0,0.10189901]
[1761918340556,0.13593484,109880.0,109870.0,0.10189901]
[1761918340777,0.13593484,109880.0,109870.0,0.26888232]
[1761918340984,0.21487186,109880.0,109870.0,0.11811901]
[1761918341438,0.15257484,109880.0,109870.0,0.11811901]